bitfinex/quotes_BTCUSD_20220226
["timestamp","ask_amount","ask_price","bid_price","bid_amount"]
[1645889887857,0.175,39353.0,39344.0,0.376821]
[1645889888054,0.175,39351.0,39344.0,0.376821]
[1645889888453,0.075,39345.0,39344.0,0.376821]
[1645889888657,0.075,39345.0,39344.0,0.378821]
[1645889888856,0.075,39345.0,39344.0,0.3783688]
[1645889889860,0.075,39345.0,39344.0,0.3763688]
[1645889890362,0.375,39345.0,39338.0,0.04]
[1645889890664,0.075,39340.0,39339.0,0.004]
[1645889890859,0.175,39340.0,39338.0,0.0057]
[1645889891056,0.075,39339.0,39338.0,0.0057]
[1645889891709,0.075,39339.0,39338.0,0.3828]
[1645889892610,0.075,39339.0,39338.0,0.3858]
[1645889893810,0.075,39339.0,39338.0,0.3828]
[1645889894009,0.075,39342.0,39338.0,0.3828]
[1645889894210,0.00037385,39340.0,39339.0,0.3771]
[1645889895013,0.31165516,39346.0,39339.0,0.3771]
[1645889895014,0.075,39341.0,39339.0,0.3771]
[1645889895210,0.075,39341.0,39340.0,0.3771]
[1645889895467,0.07537384,39341.0,39340.0,0.3771]
[1645889896066,0.00037384,39341.0,39340.0,0.3771]
[1645889896266,0.075,39344.0,39340.0,0.3771]
[1645889896569,0.175,39341.0,39340.0,0.001]
[1645889897866,0.20257971,39347.0,39346.0,0.0975404]
[1645889897867,0.28257971,39347.0,39346.0,0.0975404]
[1645889898067,0.01016,39347.0,39346.0,0.0975404]
[1645889898266,0.46726,39347.0,39346.0,0.0975404]
[1645889898468,0.6571,39347.0,39346.0,0.0975404]
[1645889898767,0.4591,39347.0,39346.0,0.0975404]
[1645889899608,0.082,39347.0,39346.0,0.0975404]
[1645889899908,0.08,39347.0,39346.0,0.0975404]
[1645889900111,0.4571,39347.0,39346.0,0.0975404]
[1645889900612,0.4571,39347.0,39338.0,0.0057]
[1645889900613,0.08,39343.0,39338.0,0.0057]
[1645889900815,0.08,39339.0,39338.0,0.0057]
[1645889901010,0.68079764,39339.0,39338.0,0.0057]
[1645889901418,0.73189764,39339.0,39338.0,0.0057]
[1645889901610,0.73189764,39339.0,39331.0,0.01]
[1645889901611,0.08,39336.0,39331.0,0.01]
[1645889901812,0.27479764,39339.0,39331.0,0.01]
[1645889901813,0.08,39332.0,39331.0,0.01]
[1645889902009,0.4571,39332.0,39331.0,0.01]
[1645889902413,0.62672631,39332.0,39331.0,0.01]
[1645889902609,0.24962631,39332.0,39326.0,0.06950834]
[1645889902865,0.08,39330.0,39326.0,0.06950834]
[1645889903865,0.08,39329.0,39327.0,0.3771]
[1645889904163,0.08,39329.0,39326.0,0.06950834]
[1645889904762,0.08,39328.0,39326.0,0.06950834]
[1645889905865,0.21205022,39333.0,39326.0,0.06950834]
[1645889905866,0.08,39332.0,39326.0,0.06950834]
[1645889906713,0.08,39331.0,39326.0,0.06950834]
[1645889907314,0.08,39331.0,39327.0,0.00037405]
[1645889907716,0.08,39338.0,39327.0,0.00037405]
[1645889907917,0.08,39338.0,39327.0,0.30037405]
[1645889908318,0.08,39338.0,39327.0,0.3]
[1645889908518,0.08,39335.0,39326.0,0.06943347]
[1645889909520,0.08,39334.0,39327.0,0.7771]
[1645889909718,0.08,39334.0,39327.0,0.4771]
[1645889910567,0.08,39333.0,39327.0,0.4771]
[1645889910968,0.08,39333.0,39329.0,0.00022315]
[1645889911171,0.08,39333.0,39330.0,0.3771]
[1645889911372,0.08,39333.0,39332.0,0.3771]
[1645889911770,0.08,39333.0,39332.0,0.1]
[1645889911967,0.08,39333.0,39332.0,0.4771]
[1645889912568,0.08,39333.0,39332.0,0.3771]
[1645889913571,0.30037397,39337.0,39329.0,0.00037404]
[1645889913572,0.08,39332.0,39329.0,0.00037404]
[1645889914415,0.08,39330.0,39327.0,0.3771]
[1645889914612,0.08,39330.0,39329.0,0.00037404]
[1645889915413,0.08037396,39337.0,39329.0,0.00037404]
[1645889915614,0.08,39337.0,39326.0,0.06943347]
[1645889915816,0.08,39335.0,39328.0,0.00037405]
[1645889916119,0.07710554,39335.0,39328.0,0.00037405]
[1645889916438,0.07710554,39335.0,39329.0,0.3771]
[1645889916439,0.25020573,39335.0,39329.0,0.3771]
[1645889916614,0.25020573,39335.0,39330.0,0.1]
[1645889916815,0.25020573,39335.0,39331.0,0.3771]
[1645889917015,0.25020573,39335.0,39330.0,0.1]
[1645889917216,0.07710554,39334.0,39331.0,0.3771]
[1645889917869,0.07710554,39334.0,39330.0,0.1]
[1645889918068,0.07710554,39334.0,39331.0,0.3771]
[1645889918268,0.07710554,39333.0,39331.0,0.3771]
[1645889918469,0.07210554,39333.0,39331.0,0.3771]
[1645889918970,0.07210554,39333.0,39332.0,0.7771]
[1645889919971,0.07210554,39333.0,39332.0,0.4771]
[1645889921473,0.00015254,39337.0,39333.0,0.3771]
[1645889921712,0.07210554,39343.0,39333.0,0.3771]
[1645889921912,0.07210554,39343.0,39330.0,0.1]
[1645889921913,0.00015254,39337.0,39330.0,0.1]
[1645889922610,0.00015254,39337.0,39333.0,0.1]
[1645889922811,0.07210554,39341.0,39335.0,0.1]
[1645889923012,0.01016,39343.0,39335.0,0.1]
[1645889923013,0.00037537,39337.0,39335.0,0.1]
[1645889923210,0.00037537,39337.0,39336.0,0.3771]
[1645889923815,0.00037537,39337.0,39333.0,0.1]
[1645889924012,0.01016,39343.0,39334.0,0.3771]
[1645889924013,0.07210554,39339.0,39334.0,0.3771]
[1645889924211,0.00037537,39338.0,39334.0,0.3771]
[1645889924416,0.00037537,39338.0,39329.0,0.30037546]
[1645889924614,0.30931306,39338.0,39337.0,0.01]
[1645889925012,0.07248091,39338.0,39337.0,0.01]
[1645889925214,0.07210554,39338.0,39337.0,0.01]
[1645889926658,0.00037536,39339.0,39337.0,0.01]
[1645889927663,0.07210554,39342.0,39337.0,0.01]
[1645889927860,0.07210554,39342.0,39336.0,0.05640827]
[1645889927861,0.00037536,39340.0,39336.0,0.05640827]
[1645889928060,0.00037536,39340.0,39329.0,0.00037546]
[1645889928261,0.00037536,39340.0,39333.0,0.05640827]
[1645889928262,0.07210554,39336.0,39333.0,0.05640827]
[1645889928560,0.07210554,39336.0,39334.0,0.3771]
[1645889929215,0.1854275,39337.0,39334.0,0.3771]
[1645889929216,0.07210554,39335.0,39334.0,0.3771]
[1645889929616,0.07210554,39335.0,39334.0,0.6771]
[1645889929814,0.07210554,39335.0,39334.0,0.73350827]
[1645889930614,0.07210554,39335.0,39334.0,0.43350827]
[1645889932015,0.07210554,39335.0,39334.0,0.73350827]
[1645889932715,0.07210554,39335.0,39334.0,0.43350827]
[1645889933362,0.00035268,39337.0,39335.0,0.09239096]
[1645889933562,0.07210554,39345.0,39336.0,0.43350827]
[1645889933762,0.07210554,39345.0,39343.0,0.05640827]
[1645889933963,0.07210554,39345.0,39344.0,0.3771]
[1645889934564,0.07210554,39345.0,39343.0,0.05640827]
[1645889934765,0.07210554,39345.0,39344.0,0.3771]
[1645889935564,0.07210554,39345.0,39340.0,0.05640827]
[1645889935768,0.07210554,39345.0,39341.0,0.3771]
[1645889936167,0.07210554,39345.0,39340.0,0.05640827]
[1645889936367,0.00013028,39344.0,39340.0,0.05640827]
[1645889936608,0.00013028,39344.0,39341.0,0.3771]
[1645889937009,0.00013028,39344.0,39343.0,0.05640827]
[1645889937211,0.07210554,39346.0,39343.0,0.3771]
[1645889937410,0.07210554,39346.0,39345.0,0.05640827]
[1645889937609,0.07210554,39346.0,39345.0,0.43350827]
[1645889937809,0.07210554,39346.0,39345.0,0.3771]
[1645889938009,0.27316437,39346.0,39342.0,0.3771]
[1645889940474,0.27316437,39346.0,39339.0,0.3771]
[1645889940668,0.27316437,39346.0,39335.0,0.37081794]
[1645889940669,0.07210554,39344.0,39335.0,0.14879923]
[1645889940868,0.07210554,39342.0,39335.0,0.14879923]
[1645889941171,0.07210554,39340.0,39335.0,0.09239096]
[1645889941370,0.07210554,39338.0,39335.0,0.09239096]
[1645889941569,0.44920554,39336.0,39335.0,0.09239096]
[1645889941973,0.07210554,39336.0,39335.0,0.09239096]
[1645889948968,0.30122154,39336.0,39335.0,0.09239096]
[1645889949370,0.51589214,39336.0,39335.0,0.09239096]
[1645889949567,0.51589214,39336.0,39335.0,0.09230158]
[1645889949769,0.51593563,39336.0,39335.0,0.09230158]
[1645889950568,0.28681963,39336.0,39335.0,0.09230158]
[1645889951915,0.07210554,39336.0,39335.0,0.09230158]
[1645889952519,0.44920554,39336.0,39335.0,0.09230158]
[1645889953318,0.07210554,39336.0,39335.0,0.09230158]
[1645889953516,0.44920554,39336.0,39335.0,0.09230158]
[1645889955121,0.45020554,39336.0,39335.0,0.09230158]
[1645889955365,0.45020554,39336.0,39335.0,0.10230158]
[1645889955768,0.75020554,39336.0,39335.0,0.10230158]
[1645889955966,0.07310554,39336.0,39335.0,0.10230158]
[1645889956167,0.45020554,39336.0,39335.0,0.10230158]
[1645889956367,0.44920554,39336.0,39335.0,0.10230158]
[1645889956567,0.74920554,39336.0,39335.0,0.10230158]
[1645889956768,0.96391963,39336.0,39335.0,0.10230158]
[1645889956966,0.66491963,39336.0,39335.0,0.10230158]
[1645889957167,0.96491963,39336.0,39335.0,0.10230158]
[1645889957773,0.28781963,39336.0,39335.0,0.10230158]
[1645889958068,0.07310554,39336.0,39335.0,0.10230158]
[1645889958267,0.07210554,39336.0,39335.0,0.10230158]
[1645889959420,0.44920554,39336.0,39335.0,0.10230158]
[1645889959618,0.07210554,39336.0,39335.0,0.10230158]
[1645889959821,0.44920554,39336.0,39335.0,0.10230158]
[1645889961021,0.45020554,39336.0,39335.0,0.10230158]
[1645889962422,0.44920554,39336.0,39335.0,0.10230158]
[1645889963072,0.45020554,39336.0,39335.0,0.10230158]
[1645889964268,0.44920554,39336.0,39335.0,0.10230158]
[1645889966271,0.07210554,39336.0,39335.0,0.10230158]
[1645889967124,0.07210554,39336.0,39335.0,0.83580985]
[1645889968425,0.07210554,39344.0,39336.0,0.48243403]
[1645889968624,0.07210554,39344.0,39338.0,0.3771]
[1645889968823,0.07352691,39344.0,39342.0,0.3771]
[1645889969223,0.07352691,39344.0,39343.0,0.42850827]
[1645889969624,0.07210554,39344.0,39337.0,0.3]
[1645889969926,0.07210554,39344.0,39341.0,0.05140827]
[1645889970123,0.07210554,39344.0,39342.0,0.3771]
[1645889970362,0.07210554,39343.0,39342.0,0.3771]
[1645889971363,0.00035536,39344.0,39342.0,0.3771]
[1645889972064,0.07210554,39347.0,39342.0,0.3771]
[1645889972264,0.00035536,39345.0,39341.0,0.3771]
[1645889972565,0.00035536,39345.0,39341.0,0.6771]
[1645889972969,0.00035536,39345.0,39341.0,0.3771]
[1645889973164,0.07210554,39347.0,39341.0,0.3781]
[1645889973565,0.00035536,39345.0,39341.0,0.3781]
[1645889973965,0.00035536,39345.0,39344.0,0.42850827]
[1645889974418,0.07210554,39346.0,39344.0,0.42850827]
[1645889974817,0.07246089,39346.0,39344.0,0.3771]
[1645889975020,0.07246089,39346.0,39340.0,0.05140827]
[1645889975217,0.07210554,39345.0,39344.0,0.001]
[1645889975417,0.07210554,39345.0,39344.0,0.3781]
[1645889976022,0.07210554,39345.0,39344.0,0.001]
[1645889977020,0.07210554,39345.0,39337.0,0.05140827]
[1645889977220,0.07210554,39344.0,39338.0,0.3771]
[1645889978366,0.07210554,39341.0,39338.0,0.3771]
[1645889979567,0.07246092,39341.0,39338.0,0.3771]
[1645889979767,0.07246092,39341.0,39338.0,0.3801]
[1645889980368,0.07210554,39341.0,39338.0,0.43150827]
[1645889980566,0.07223645,39341.0,39338.0,0.42850827]
[1645889980967,0.07223645,39341.0,39336.0,0.1567423]
[1645889981176,0.07223645,39341.0,39336.0,0.10533403]
[1645889981616,0.07210554,39341.0,39336.0,0.10533403]
[1645889982017,0.0003551,39340.0,39338.0,0.05140827]
[1645889982217,0.0003551,39340.0,39339.0,0.3771]
[1645889982218,0.07246064,39340.0,39339.0,0.3771]
[1645889982818,0.07210554,39340.0,39339.0,0.3771]
[1645889984220,0.07210554,39345.0,39339.0,0.3771]
[1645889984421,0.00036004,39341.0,39340.0,0.05140827]
[1645889984620,0.00036004,39341.0,39340.0,0.42850827]
[1645889985221,0.07210554,39345.0,39338.0,0.05140827]
[1645889985466,0.07210554,39345.0,39341.0,0.3771]
[1645889985666,0.00036003,39342.0,39338.0,0.05140827]
[1645889985870,0.00036003,39342.0,39339.0,0.3771]
[1645889986471,0.07210554,39345.0,39339.0,0.3771]
[1645889986668,0.00036003,39342.0,39339.0,0.6771]
[1645889986868,0.00036003,39342.0,39341.0,0.42850827]
[1645889987168,0.00036003,39342.0,39341.0,0.3771]
[1645889987568,0.07210554,39345.0,39341.0,0.3771]
[1645889987869,0.00035475,39343.0,39341.0,0.31540435]
[1645889988469,0.00035475,39343.0,39342.0,0.72850827]
[1645889988669,0.00035475,39343.0,39342.0,0.42850827]
[1645889988869,0.07210554,39346.0,39343.0,0.377112]
[1645889989122,0.00035475,39344.0,39343.0,0.377112]
[1645889989319,0.00018284,39344.0,39343.0,0.377112]
[1645889990018,0.07210554,39345.0,39343.0,0.377112]
[1645889990222,0.07210554,39345.0,39344.0,0.35140827]
[1645889990420,0.07210554,39345.0,39344.0,0.72852027]
[1645889990821,0.07210554,39345.0,39344.0,0.77962027]
[1645889991222,0.07210554,39345.0,39344.0,1.00165707]
[1645889991422,0.07210554,39345.0,39344.0,1.01381707]
[1645889991626,0.07210554,39345.0,39344.0,1.08934707]
[1645889991824,0.00013134,39346.0,39345.0,1.21495591]
[1645889992022,0.00013134,39346.0,39345.0,1.77885791]
[1645889992424,0.21471409,39357.0,39345.0,1.73740991]
[1645889992621,0.21471409,39357.0,39352.0,0.377112]
[1645889992622,0.22964333,39356.0,39352.0,0.377112]
[1645889992892,0.00052528,39353.0,39352.0,0.377112]
[1645889993292,0.00052528,39353.0,39352.0,0.42852027]
[1645889993694,0.21471409,39359.0,39352.0,0.72852027]
[1645889993895,0.015,39360.0,39358.0,0.05140827]
[1645889993896,0.23113569,39360.0,39358.0,0.05140827]
[1645889994097,0.23113569,39360.0,39359.0,0.377112]
[1645889994298,0.23113569,39360.0,39359.0,0.387112]
[1645889994299,0.0164216,39360.0,39359.0,0.387112]
[1645889994495,0.21478161,39360.0,39359.0,0.43852027]
[1645889994695,0.21478161,39360.0,39359.0,0.387112]
[1645889994895,0.21336001,39360.0,39359.0,0.387112]
[1645889995096,0.21336001,39360.0,39359.0,0.01]
[1645889995495,0.21436001,39360.0,39359.0,0.01]
[1645889995697,0.4290741,39360.0,39359.0,0.01]
[1645889996097,0.21436001,39360.0,39359.0,0.387112]
[1645889996297,0.21436001,39360.0,39359.0,0.01]
[1645889996722,0.19836001,39360.0,39359.0,0.01]
[1645889997925,0.19836001,39360.0,39354.0,0.001]
[1645889997926,1.2,39359.0,39354.0,0.001]
[1645889998127,0.3,39358.0,39354.0,0.001]
[1645889998423,0.51471409,39358.0,39354.0,0.001]
[1645889998823,0.2124197,39350.0,39348.0,0.05140827]
[1645889999023,0.2124197,39350.0,39349.0,0.377112]
[1645889999622,0.2124197,39350.0,39349.0,0.387112]
[1645890002968,0.00035521,39351.0,39349.0,0.387112]
[1645890003369,0.21471409,39356.0,39349.0,0.387112]
[1645890003569,0.00035521,39352.0,39349.0,0.44052027]
[1645890003968,0.18650093,39352.0,39349.0,0.44052027]
[1645890004423,0.00142063,39358.0,39349.0,0.44052027]
[1645890004424,0.21471409,39357.0,39349.0,0.44052027]
[1645890004623,0.21471409,39357.0,39349.0,0.74052027]
[1645890004822,0.00035521,39352.0,39349.0,0.687112]
[1645890005023,0.00035521,39352.0,39351.0,0.42852027]
[1645890005724,0.21471409,39356.0,39351.0,0.377112]
[1645890005923,0.00013583,39353.0,39351.0,0.42852027]
[1645890006125,0.00013583,39353.0,39352.0,0.05140827]
[1645890006423,0.00013583,39353.0,39352.0,0.42852027]
[1645890006922,0.21471409,39359.0,39352.0,0.377112]
[1645890007128,0.00013583,39354.0,39352.0,0.377112]
[1645890007525,0.00013583,39354.0,39352.0,0.379112]
[1645890007972,0.00013583,39354.0,39352.0,0.629112]
[1645890008172,0.24879448,39359.0,39352.0,0.629112]
[1645890008173,0.45334857,39359.0,39352.0,0.629112]
[1645890008374,0.01016,39360.0,39352.0,0.629112]
[1645890008375,0.00013583,39355.0,39353.0,0.3]
[1645890008574,0.00013583,39355.0,39354.0,0.42852027]
[1645890008778,0.00013583,39355.0,39354.0,0.72852027]
[1645890008977,0.00013583,39355.0,39354.0,0.84530027]
[1645890009373,0.21471409,39365.0,39354.0,0.54530027]
[1645890009576,0.21471409,39363.0,39354.0,0.05340827]
[1645890009779,0.3,39364.0,39354.0,0.05340827]
[1645890009780,0.00037022,39356.0,39355.0,0.377112]
[1645890010573,0.20191974,39357.0,39355.0,0.377112]
[1645890010775,0.20228996,39357.0,39355.0,0.377112]
[1645890011274,0.19957936,39357.0,39355.0,0.377112]
[1645890011635,0.19957936,39357.0,39355.0,0.380112]
[1645890011829,0.19920914,39357.0,39355.0,0.380112]
[1645890012128,0.19920914,39357.0,39355.0,0.37969352]
[1645890012730,0.19920914,39357.0,39355.0,0.37669352]
[1645890013532,0.19920914,39357.0,39355.0,0.37869352]
[1645890014332,0.1989847,39357.0,39355.0,0.37869352]
[1645890014731,0.1989847,39357.0,39355.0,0.37669352]
[1645890015471,0.1989847,39357.0,39355.0,0.37869352]
[1645890016074,0.1989847,39357.0,39356.0,0.05140827]
[1645890016275,0.1989847,39357.0,39356.0,0.42852027]
[1645890016672,0.1989847,39357.0,39356.0,0.42352027]
[1645890017977,0.1989847,39357.0,39356.0,0.30955998]
[1645890018376,0.00035811,39358.0,39356.0,0.35596825]
[1645890018977,0.21471409,39363.0,39356.0,0.35596825]
[1645890019221,0.1812,39366.0,39356.0,0.30955998]
[1645890019222,0.21471409,39364.0,39356.0,0.30955998]
[1645890019422,0.00035811,39359.0,39356.0,0.30955998]
[1645890019622,0.00035811,39359.0,39358.0,0.377029]
[1645890020222,0.19133054,39361.0,39358.0,0.377029]
[1645890020427,0.00035804,39360.0,39359.0,0.42342927]
[1645890020623,0.00035804,39360.0,39359.0,0.377021]
[1645890020821,0.00035804,39360.0,39359.0,0.42342927]
[1645890021021,0.00035804,39360.0,39359.0,0.377021]
[1645890021423,0.21471409,39364.0,39359.0,0.377021]
[1645890021723,0.00034552,39361.0,39359.0,0.379021]
[1645890021924,0.00034552,39361.0,39360.0,0.04640827]
[1645890022124,0.21005961,39364.0,39360.0,0.42342927]
[1645890022323,0.00138188,39367.0,39360.0,0.377021]
[1645890022324,0.26972013,39367.0,39360.0,0.377021]
[1645890022531,0.32310589,39369.0,39360.0,0.377021]
[1645890022532,0.26943825,39369.0,39360.0,0.377021]
[1645890022727,0.26943825,39369.0,39361.0,0.04640827]
[1645890022972,0.26943825,39369.0,39362.0,0.377021]
[1645890023171,0.26833825,39368.0,39362.0,0.377021]
[1645890023374,0.26943825,39369.0,39361.0,0.04640827]
[1645890023571,0.26833825,39368.0,39362.0,0.379021]
[1645890023873,0.26943825,39369.0,39362.0,0.002]
[1645890024071,0.26846971,39367.0,39362.0,0.002]
[1645890024273,0.00013146,39367.0,39362.0,0.002]
[1645890024472,0.00013146,39367.0,39362.0,0.00059441]
[1645890024473,0.2209771,39364.0,39362.0,0.00059441]
[1645890024872,0.2209771,39364.0,39356.0,0.04640827]
[1645890025074,0.2209771,39364.0,39359.0,0.04640827]
[1645890025281,0.0003587,39365.0,39361.0,0.04640827]
[1645890025473,0.0003587,39365.0,39362.0,0.377021]
[1645890026273,0.44911752,39369.0,39362.0,0.377021]
[1645890026473,0.0003587,39365.0,39362.0,0.677021]
[1645890026723,0.0003587,39365.0,39364.0,0.377021]
[1645890026922,0.0003587,39365.0,39364.0,0.677021]
[1645890027422,0.0011,39369.0,39364.0,0.377021]
[1645890027623,0.00035797,39366.0,39364.0,0.377021]
[1645890028624,0.00035797,39366.0,39360.0,0.04640827]
[1645890028625,0.26943825,39369.0,39360.0,0.04640827]
[1645890028827,0.26943825,39369.0,39361.0,0.377021]
[1645890029025,0.00035797,39367.0,39361.0,0.377021]
[1645890029727,0.23518365,39364.0,39361.0,0.377021]
[1645890031370,0.00035803,39364.0,39361.0,0.377021]
[1645890032169,0.26943825,39369.0,39361.0,0.377021]
[1645890032170,0.21446759,39367.0,39361.0,0.377021]
[1645890032369,0.19847812,39369.0,39361.0,0.377021]
[1645890032569,0.00035803,39364.0,39361.0,0.377021]
[1645890033171,0.26833825,39368.0,39361.0,0.377021]
[1645890033370,0.26833825,39368.0,39361.0,0.627021]
[1645890034222,0.26833825,39370.0,39361.0,0.927021]
[1645890034425,0.32059825,39372.0,39361.0,0.99055]
[1645890034623,0.31043825,39372.0,39361.0,0.99055]
[1645890034822,0.31043825,39372.0,39364.0,0.377021]
[1645890035022,0.0001308,39367.0,39365.0,0.3]
[1645890035221,0.0001308,39367.0,39366.0,0.04640827]
[1645890035422,0.0001308,39367.0,39366.0,0.72342927]
[1645890035625,0.0001308,39367.0,39366.0,0.42342927]
[1645890035923,0.0421,39372.0,39366.0,0.72342927]
[1645890036123,0.0001308,39368.0,39366.0,0.677021]
[1645890036321,0.0421,39372.0,39371.0,0.3868902]
[1645890037322,0.0421,39372.0,39371.0,0.0098692]
[1645890037726,0.0421,39372.0,39371.0,0.3868902]
[1645890037970,0.0421,39372.0,39371.0,0.43329847]
[1645890038573,0.0421,39372.0,39371.0,0.43429847]
[1645890038773,0.0421,39372.0,39371.0,0.3878902]
[1645890039173,0.0421,39372.0,39371.0,0.0108692]
[1645890039373,0.0421,39372.0,39371.0,0.3878902]
[1645890039775,0.0421,39372.0,39371.0,0.3868902]
[1645890039974,0.0421,39372.0,39371.0,0.0098692]
[1645890040174,0.0409087,39372.0,39371.0,0.0098692]
[1645890041075,0.3409087,39372.0,39371.0,0.0098692]
[1645890041622,0.30924695,39372.0,39371.0,0.0098692]
[1645890041822,0.0409087,39372.0,39371.0,0.0098692]
[1645890042420,0.0409087,39372.0,39371.0,0.0108692]
[1645890043722,0.0409087,39372.0,39371.0,0.0098692]
[1645890044521,0.0409087,39372.0,39371.0,0.008168]
[1645890045124,0.30924695,39372.0,39371.0,0.008168]
[1645890045375,0.0409087,39372.0,39371.0,0.008168]
[1645890045577,0.30924695,39372.0,39371.0,0.008168]
[1645890045777,0.30924695,39372.0,39371.0,0.007168]
[1645890046379,0.0409087,39372.0,39371.0,0.007168]
[1645890046677,0.0429087,39372.0,39371.0,0.267168]
[1645890047276,0.31124695,39372.0,39371.0,0.267168]
[1645890047476,0.0429087,39372.0,39371.0,0.267168]
[1645890047678,0.30924695,39372.0,39371.0,0.267168]
[1645890048480,0.0409087,39372.0,39371.0,0.268168]
[1645890049523,0.0409087,39372.0,39371.0,0.645189]
[1645890049719,0.0409087,39372.0,39371.0,0.644189]
[1645890050320,0.0409087,39372.0,39371.0,0.267168]
[1645890050519,0.0409087,39372.0,39371.0,0.268168]
[1645890051320,0.0409087,39372.0,39371.0,0.69159727]
[1645890051720,0.0409087,39372.0,39371.0,0.644189]
[1645890052520,0.0409087,39372.0,39371.0,0.268168]
[1645890054073,0.0409087,39372.0,39371.0,0.267168]
[1645890054272,0.0409087,39372.0,39371.0,0.644189]
[1645890054472,0.0409087,39372.0,39371.0,0.268168]
[1645890055775,0.0409087,39372.0,39371.0,0.267168]
[1645890056637,0.0409087,39372.0,39371.0,0.268168]
[1645890057832,0.0409087,39372.0,39371.0,0.267168]
[1645890058234,0.0409087,39372.0,39371.0,0.31357627]
[1645890058434,0.0409087,39372.0,39371.0,0.267168]
[1645890058633,0.0409087,39372.0,39371.0,0.268168]
[1645890059638,0.0409087,39372.0,39371.0,0.645189]
[1645890059839,0.0409087,39372.0,39371.0,0.267168]
[1645890060870,0.0409087,39372.0,39371.0,0.69059727]
[1645890061369,0.04005777,39372.0,39371.0,0.69059727]
[1645890061576,0.04005777,39372.0,39371.0,0.267168]
[1645890062671,0.30813949,39372.0,39371.0,0.267168]
[1645890063880,1.2,39371.0,39362.0,0.01014]
[1645890064132,0.04892629,39356.0,39354.0,0.21324694]
[1645890064332,0.04892629,39356.0,39350.0,0.21324694]
[1645890064627,0.04892629,39356.0,39348.0,0.25965521]
[1645890064827,0.23170407,39352.0,39349.0,0.877021]
[1645890065030,0.23170407,39352.0,39349.0,0.37517044]
[1645890065233,0.0511,39351.0,39346.0,0.04640827]
[1645890065428,0.0511,39351.0,39345.0,0.00995591]
[1645890065832,0.377063,39350.0,39345.0,0.00995591]
[1645890066029,0.0511,39349.0,39345.0,0.00995591]
[1645890066228,0.21701453,39346.0,39345.0,0.00995591]
[1645890066633,0.51701453,39346.0,39345.0,0.00995591]
[1645890067432,0.89407753,39346.0,39345.0,0.00995591]
[1645890067629,0.51701453,39346.0,39345.0,0.00995591]
[1645890067881,0.0511,39347.0,39345.0,0.00995591]
[1645890068476,0.0521,39347.0,39345.0,0.25995591]
[1645890068877,0.377063,39346.0,39345.0,0.25995591]
[1645890069678,0.360675,39346.0,39345.0,0.25995591]
[1645890070080,0.0511,39347.0,39345.0,0.25995591]
[1645890071176,0.23193799,39346.0,39345.0,0.25995591]
[1645890071380,0.60900099,39346.0,39345.0,0.25995591]
[1645890072227,0.60900099,39346.0,39345.0,0.25953762]
[1645890072527,0.23293799,39346.0,39345.0,0.25953762]
[1645890072927,0.61000099,39346.0,39345.0,0.25953762]
[1645890073529,0.69000099,39346.0,39345.0,0.25953762]
[1645890073737,0.08,39344.0,39334.0,0.05]
[1645890073931,0.08,39344.0,39331.0,0.3]
[1645890073932,0.08,39340.0,39331.0,0.04640827]
[1645890074131,0.08,39340.0,39326.0,0.04640827]
[1645890074132,0.08,39338.0,39326.0,0.04640827]
[1645890074442,0.08,39336.0,39326.0,0.34140827]
[1645890074629,0.08,39336.0,39327.0,0.677063]
[1645890074929,0.08,39336.0,39328.0,0.04140827]
[1645890075132,0.08,39336.0,39332.0,0.04140827]
[1645890075571,0.08,39336.0,39332.0,0.0417783]
[1645890076273,0.08,39335.0,39332.0,0.0417783]
[1645890076573,0.08,39335.0,39334.0,0.04140827]
[1645890077371,0.08,39339.0,39332.0,0.00037003]
[1645890077772,0.08,39339.0,39324.0,0.29942544]
[1645890077972,0.08,39339.0,39330.0,0.04140827]
[1645890078172,0.0511,39340.0,39334.0,0.00035663]
[1645890078173,0.08,39337.0,39334.0,0.00035663]
[1645890078371,0.08,39335.0,39334.0,0.00035663]
[1645890079227,0.08,39335.0,39333.0,0.00035664]
[1645890079426,0.08,39334.0,39333.0,0.00035664]
[1645890079735,0.08,39334.0,39333.0,0.04176491]
[1645890080328,0.08,39334.0,39333.0,0.41847127]
[1645890080627,0.08,39334.0,39333.0,0.377063]
[1645890080828,0.08,39334.0,39333.0,0.04140827]
[1645890081427,0.08,39340.0,39330.0,0.25]
[1645890081628,0.08,39340.0,39335.0,0.04140827]
[1645890082231,0.08,39340.0,39332.0,0.00035785]
[1645890082428,0.08,39343.0,39332.0,0.00035785]
[1645890082730,0.08,39343.0,39330.0,0.25]
[1645890082970,0.08,39343.0,39334.0,0.00035784]
[1645890083170,0.2838,39344.0,39334.0,0.00035784]
[1645890083171,0.08,39341.0,39334.0,0.00035784]
[1645890083675,0.08,39341.0,39340.0,0.04140827]
[1645890083876,0.08,39341.0,39340.0,0.86957127]
[1645890084072,0.54892629,39356.0,39342.0,0.06408247]
[1645890084073,0.08,39355.0,39342.0,0.06408247]
[1645890084274,0.08,39355.0,39353.0,0.04140827]
[1645890084475,0.08,39355.0,39354.0,0.377063]
[1645890084676,0.08,39355.0,39354.0,0.677063]
[1645890084881,0.04892629,39356.0,39354.0,0.852593]
[1645890085073,0.04892629,39356.0,39355.0,0.41803827]
[1645890085274,0.04892629,39356.0,39355.0,0.81957127]
[1645890085674,0.04892629,39356.0,39355.0,0.51957127]
[1645890086075,0.04892629,39356.0,39355.0,0.61957127]
[1645890086930,0.04892629,39356.0,39355.0,0.91957127]
[1645890089131,0.04892629,39356.0,39355.0,0.90957127]
[1645890089936,0.04892629,39356.0,39355.0,0.08140827]
[1645890090137,0.04892629,39356.0,39354.0,0.377063]
[1645890090378,0.04892629,39356.0,39355.0,0.377063]
[1645890090781,0.04892629,39356.0,39355.0,0.41847127]
[1645890091183,0.04892629,39356.0,39355.0,0.51847127]
[1645890091382,0.04892629,39356.0,39355.0,0.82147127]
[1645890092684,0.04892629,39356.0,39355.0,0.81847127]
[1645890092982,0.04892629,39356.0,39355.0,0.51847127]
[1645890093581,0.04892629,39356.0,39355.0,0.41847127]
[1645890093780,0.04892629,39356.0,39355.0,0.377063]
[1645890093983,0.04892629,39356.0,39351.0,0.04140827]
[1645890094228,0.04892629,39356.0,39355.0,0.25]
[1645890094626,0.28487951,39356.0,39355.0,0.25]
[1645890095031,0.28487951,39356.0,39355.0,0.66847127]